Cogmind - Beta 13 @@@ ROGUE MODE // 2024.04.09 @ 06:30:53 Player: sick0r Result: Destroyed by FI-S93(R) with Subdweller Machine Gun Performance ------------- Evolutions (0) 0 Regions Visited (2) 400 Robots Destroyed (23) 115 Value Destroyed (638) 638 Prototype IDs (2) 40 Alien Tech Used (0) 0 Bonus (0) 0 TOTAL SCORE: 1193 Bonus ------- None Cogmind --------- Core Integrity 0/250 Matter 246/300 Energy 200/200 System Corruption 0% Temperature Cool (72) Movement Rolling (215) Ox9 Location -10/Subcaves Parts ------- > --- POWER (1) -------- Subdweller Power Source > --- PROPULSION (2) --- Wheel > --- UTILITY (2) ------ Huge Storage Unit Hacking Suite > --- WEAPON (2) ------- Particle Gun Subdweller Beam Cannon > --- INVENTORY (25) --- Ion Engine Ion Engine Light Treads Light Treads Aluminum Leg Aluminum Leg Heat Sink Large Storage Unit Cargo Storage Unit Subdweller Optics Signal Interpreter ECM Suite Core Shielding Weapon Shielding Makeshift Light Armor Plating EM Pulse Gun Riot Gun Medium Laser Particle Gun Subdweller Shrapnel Launcher Scrap Shield Fragment (49) Scrap Shield Fragment (39) Peak State ------------ > --- POWER ------------ Subdweller Power Source > --- PROPULSION ------- Wheel Wheel > --- UTILITY ---------- Huge Storage Unit Hacking Suite > --- WEAPON ----------- Riot Gun Particle Gun > --- INVENTORY -------- Ion Engine Ion Engine Light Treads Light Treads Aluminum Leg Aluminum Leg Heat Sink Large Storage Unit Cargo Storage Unit Subdweller Optics Signal Interpreter ECM Suite Core Shielding Weapon Shielding Makeshift Light Armor Plating EM Pulse Gun Medium Laser Particle Gun Subdweller Beam Cannon Grenade Launcher Subdweller Shrapnel Launcher Enhanced Flamer Scrap Shield Fragment Scrap Shield Fragment [Rating: 16] Favorites ----------- Power Light Ion Engine Engine Light Ion Engine Propulsion Wheel Treads Light Treads Leg Aluminum Leg Wheel Wheel Utility Huge Storage Unit Device Heat Sink Storage Huge Storage Unit Processor Signal Interpreter Hackware Hacking Suite Weapon Particle Gun Energy Gun Particle Gun Energy Cannon Subdweller Beam Cannon Ballistic Gun Assault Rifle Launcher Subdweller Shrapnel Launcher Special Weapon Enhanced Flamer Build | -11 -10 -10 ------- Run | Yrd Mat Sub Slots Evolved . | . . . Power . | . . . Propulsion . | . . . Utility . | . . . Weapon . | . . . Parts Attached 47 | 14 22 11 Power 10 | 5 3 2 Engine 10 | 5 3 2 Core . | . . . Reactor . | . . . Propulsion 14 | 5 7 2 Treads 2 | 2 . . Leg 1 | 1 . . Wheel 11 | 2 7 2 Hover . | . . . Flight . | . . . Utility 7 | 1 6 . Device 1 | . 1 . Storage 3 | 1 2 . Processor 2 | . 2 . Hackware 1 | . 1 . Protection . | . . . Artifact . | . . . Weapon 16 | 3 6 7 Energy Gun 7 | 2 3 2 Energy Cannon 1 | . . 1 Ballistic Gun 4 | 1 3 . Ballistic Cannon . | . . . Launcher 3 | . . 3 Special Weapon 1 | . . 1 Impact Weapon . | . . . Slashing Weapon . | . . . Piercing Weapon . | . . . Special Melee Weapon . | . . . Unidentified Prototypes . | . . . Parts Lost 8 | . 2 6 Power 1 | . . 1 Propulsion 3 | . . 3 Utility . | . . . Weapon 4 | . 2 2 Highest Loss Streak 3 | . 1 3 To Critical Strikes . | . . . Average Slot Usage (%) 95 | . 93 99 Engine 13 | . 13 14 Treads 2 | . 3 . Wheel 24 | . 23 27 Storage 13 | . 13 14 Processor 6 | . 9 . Hackware 5 | . 1 14 Energy Gun 15 | . 14 16 Ballistic Gun 8 | . 12 . Launcher 3 | . . 10 Naked Turns . | . . . Heaviest Build 96 | 14 89 96 Greatest Support 40 | 40 40 26 Greatest Overweight (x) 27 | 1 27 4 Average Overweight (x) 3 | . 2 3 Largest Inventory Capacity 25 | 8 25 25 Average Capacity 22 | 7 22 25 Most Carried 25 | 8 25 25 Average Carried 18 | 6 16 24 Final Capacity 25 | 8 25 25 Final Carried 24 | 6 24 23 Class Distribution -------------------- 100% | Mutant Dominant Class ---------------- Mutant | -10/Materials Mutant | -10/Subcaves Resources | -11 -10 -10 ----------- Run | Yrd Mat Sub Matter Collected 837 | 213 488 136 Remotely . | . . . Salvage Created 766 | . 641 125 Parts 48 | . 40 8 Haulers Intercepted . | . . . Recyclers Shooed . | . . . Parts Field Recycled . | . . . Retrieved Matter . | . . . Parts Self-Destructed 2 | . . 2 Prevented . | . . . Kills | -11 -10 -10 ------- Run | Yrd Mat Sub Combat Hostiles Destroyed 17 | . 13 4 Guns 15 | . 13 2 AOE 2 | . . 2 Classes Destroyed 7 | . 6 1 Builder 1 | . 1 . Mechanic 1 | . 1 . Operator 1 | . 1 . Watcher 3 | . 3 . Swarmer 3 | . 3 . Grunt 10 | . 10 . Subdweller 4 | . . 4 Best Kill Streak 3 | . 3 1 Combat Bots Only 2 | . 2 1 Max Kills in Single Turn 1 | . 1 1 Gunslinging . | . . . Exploded 1 | . . 1 Melee . | . . . Uniques/NPCs Destroyed . | . . . Combat | -11 -10 -10 -------- Run | Yrd Mat Sub Hostile Shots Fired 83 | . 59 24 Missed 23 | . 15 8 Damage Taken 989 | . 528 461 Core 265 | . 130 135 Absorbed by Shields . | . . . Regen/Repaired (Parts) 92 | . 92 . Core Remaining (%) 100 | 100 . . Volleys Fired 70 | . 52 18 Largest 2 | . 2 2 Hottest 145 | . 90 145 Shots Fired 133 | . 99 34 Gun 119 | . 99 20 Cannon 3 | . . 3 Launcher 7 | . . 7 Special 4 | . . 4 Kinetic 50 | . 47 3 Thermal 75 | . 48 27 Explosive 4 | . . 4 Electromagnetic 4 | . 4 . Robot Hit Streak 11 | . 10 11 Robot Miss Streak 2 | . 2 1 Penetration Max . | . . . Secondary Targets 2 | . 2 . Max Gunslinging Chain 1 | . 1 . Shots Hit Robots 89 | . 64 25 Core Hits 40 | . 32 8 Critical Kills . | . . . Critical Parts Destroyed 1 | . 1 . Critical Strikes 7 | . 6 1 Burn 6 | . 5 1 Destroy 1 | . 1 . Melee Attacks . | . . . Impact . | . . . Slashing . | . . . Piercing . | . . . Sneak Attacks . | . . . Combat Hostiles . | . . . Follow-up Attacks . | . . . Damage Inflicted 1367 | . 855 512 Guns 1069 | . 855 214 Cannons 85 | . . 85 Explosions 171 | . . 171 Melee . | . . . Ramming . | . . . Kinetic 473 | . 387 86 Thermal 772 | . 431 341 Explosive 85 | . . 85 Electromagnetic 37 | . 37 . Impact . | . . . Slashing . | . . . Piercing . | . . . Highest Corruption . | . . . Average Corruption . | . . . Corruption Purged . | . . . Corruption Blocked . | . . . Overload Shots . | . . . Overflow Damage . | . . . Projectiles . | . . . Explosions . | . . . Melee . | . . . Knockbacks . | . . . Impact . | . . . Kinetic . | . . . Secondary . | . . . Self-Inflicted Damage 28 | . . 28 Shots 1 | . . 1 Rammed . | . . . Targets Rammed . | . . . Kicked . | . . . Crushed . | . . . Highest Temperature 270 | . 185 270 Average Temperature 51 | . 48 71 Received Heat Transfer 579 | . 273 306 Siege Activations . | . . . Robots Corrupted . | . . . Combat Hostiles . | . . . Parts Fried . | . . . Impact Corruptions . | . . . Robots Melted . | . . . Combat Hostiles . | . . . Parts Melted 4 | . 3 1 Heat Transferred 2700 | . 1591 1109 Parts Sabotaged . | . . . Parts Stolen . | . . . Parts Stripped . | . . . Power Chain Reactions . | . . . Alert | -11 -10 -10 ------- Run | Yrd Mat Sub Peak Influence 127 | . 127 . Initial . | . . . Average 41 | . 44 . Maximum Alert Level . | . . . Low Security (%) 100 | 100 100 . Level 1 . | . . . Level 2 . | . . . Level 3 . | . . . Level 4 . | . . . Level 5 . | . . . High Security . | . . . Max Security . | . . . Squads Dispatched 4 | . 4 . Investigation 3 | . 3 . Extermination . | . . . Reinforcement 1 | . 1 . Assault . | . . . Garrison . | . . . Intercept . | . . . Searches Triggered . | . . . Construction Impeded . | . . . Haulers Reinforced . | . . . Active Scanning Responses . | . . . Cargo Convoy Interrupts . | . . . Stealth | -11 -10 -10 --------- Run | Yrd Mat Sub Distress Signals 1 | . 1 . Communications Jammed . | . . . Distress Signals . | . . . Times Spotted 26 | . 21 5 Peak Tracking Total 4 | . 4 1 Tactical Retreats 1 | . 1 . Traps | -11 -10 -10 ------- Run | Yrd Mat Sub Traps Triggered 7 | . 5 2 Indirectly . | . . . Trap Hack Attempts . | . . . Triggered . | . . . Disarmed . | . . . Reprogrammed . | . . . Reused . | . . . Traps Extracted . | . . . Installed 1 | . . 1 Triggered . | . . . Machines | -11 -10 -10 ---------- Run | Yrd Mat Sub Machines Disabled . | . . . Max in Single Turn . | . . . Machines Repaired . | . . . Machines Dismantled . | . . . Machines Sabotaged . | . . . Overloaded Fab Kills . | . . . Hacking | -11 -10 -10 --------- Run | Yrd Mat Sub Machines Accessed 8 | . 7 1 Terminals 6 | . 6 . Fabricators . | . . . Repair Stations 1 | . 1 . Recycling Units . | . . . Scanalyzers . | . . . Garrison Access . | . . . Total Hacks 32 | . 31 1 Successful 20 | . 19 1 Failed 12 | . 12 . Catastrophic 1 | . 1 . Database Lockouts . | . . . Manual 8 | . . 8 Terminals 23 | . 23 . Fabricators . | . . . Repair Stations 8 | . 8 . Recycling Units . | . . . Scanalyzers . | . . . Garrison Access . | . . . Terminal Hacks 15 | . 14 1 Record 4 | . 3 1 Robot Analysis 1 | . 1 . Prototype ID Bank 1 | . 1 . Emergency Access Points 3 | . 3 . Terminal Index 1 | . 1 . Locate Traps 1 | . 1 . Dispatch Records 1 | . 1 . Maintenance Status 1 | . 1 . Hauler Manifests 1 | . 1 . Zone Layout 1 | . 1 . Fabricator Hacks . | . . . Repair Station Hacks 5 | . 5 . Scan Component 3 | . 3 . Repair 2 | . 2 . Recycling Unit Hacks . | . . . Scanalyzer . | . . . Garrison Access Hacks . | . . . Unauthorized Hacks . | . . . Terminals . | . . . Fabricators . | . . . Repair Stations . | . . . Recycling Units . | . . . Scanalyzers . | . . . Garrison Access . | . . . Data Cores Recovered . | . . . Used . | . . . Hacking Detections 5 | . 5 . Full Trace Events 2 | . 2 . Feedback Events . | . . . Feedback Blocked . | . . . Robot Schematics Acquired . | . . . Robots Built . | . . . Authchips . | . . . Time . | . . . Total Robot Build Rating . | . . . Part Schematics Acquired . | . . . Parts Built . | . . . Authchips . | . . . Time . | . . . Total Part Build Rating . | . . . Parts Repaired 2 | . 2 . Time 52 | . 52 . Parts Recycled . | . . . Recycled Matter . | . . . Retrieved Matter . | . . . Retrieved Components . | . . . Parts Scanalyzed . | . . . Part Schematics Acquired . | . . . Parts Damaged . | . . . Bothacking | -11 -10 -10 ------------ Run | Yrd Mat Sub Used RIF Installer . | . . . Robots Hacked . | . . . Non-combat . | . . . Combat . | . . . Robot Hacks Applied . | . . . Relay Couplers Released . | . . . Fabnet Peak Effective % . | . . . Robots Rewired . | . . . Allies Hacked . | . . . Hacks Repelled . | . . . Allies | -11 -10 -10 -------- Run | Yrd Mat Sub Total Allies . | . . . Largest Group . | . . . Highest-Rated Group . | . . . Highest-Rated Ally . | . . . Total Orders . | . . . Ally Attacks . | . . . Total Damage . | . . . Kills . | . . . Allies Corrupted . | . . . Allies Melted . | . . . Intel | -11 -10 -10 ------- Run | Yrd Mat Sub Robot Analysis Total 1 | . 1 . Derelict Logs Recovered 1 | . . 1 Drone Launches . | . . . Drone Recoveries . | . . . Exploration | -11 -10 -10 ------------- Run | Yrd Mat Sub Turns Passed 3552 | 133 2315 1104 Spaces Moved 2069 | 39 1298 732 Core 15 | 12 3 . Treads 160 | 2 158 . Legs 25 | 25 . . Wheels 1869 | . 1137 732 Hover . | . . . Flight . | . . . Fastest Speed 50 | 50 90 135 Average Speed 140 | 140 141 139 Slowest Speed 1400 | 190 1400 140 Overloaded Moves . | . . . Propulsion Burnouts . | . . . Robots Hopped . | . . . Cave-ins Triggered . | . . . Exploration Rate (%) 46 | 5 87 48 Regions Visited 2 Branch Regions 1 Pre-discovered Areas . | . . . Known Exits Taken 1 | . 1 . Unknown Exits Taken 1 | 1 . . Scrap Searched 6 | . . 6 Spaces Dug 6 | . . 6 Terrain Destroyed 63 | . . 63 Melee . | . . . Projectile . | . . . AOE 63 | . . 63 Terrain Rammed . | . . . Walls Destroyed . | . . . Machines Disabled . | . . . Actions | -11 -10 -10 --------- Run | Yrd Mat Sub Total 2582 | 111 1689 782 Wait 295 | 51 243 1 Move 2067 | 38 1297 732 Hop . | . . . Pick Up 73 | 8 54 11 Fast Attach 4 | 4 . . Attach 22 | 2 14 6 Detach . | . . . Swap 21 | 8 8 5 Drop 29 | . 21 8 Fire 70 | . 52 18 Melee . | . . . Ram . | . . . Kick . | . . . Crush . | . . . Escape Stasis . | . . . Rewire . | . . . Trap 1 | . . 1 Miscellaneous . | . . . Route ------- -11/Scrapyard -10/Materials (discovered 4 exits: *Mat x2 / *Min / *Sub) -10/Subcaves (discovered 1 exit: [*Mat]) History --------- Turn | Location | Event 17 | -11/Scrapyard | Discovered new exit (range 16) 134 | -11/Scrapyard | Entered Materials 236 | -10/Materials | Discovered new exit (range 12) 244 | -10/Materials | Discovered new exit (range 13) 319 | -10/Materials | Identified exit to Mines 325 | -10/Materials | Build established: Mutant 523 | -10/Materials | Repaired Ion Engine 550 | -10/Materials | Repaired Lgt. Treads 636 | -10/Materials | Identified exit to Materials 985 | -10/Materials | Core integrity fell below 50% 1111 | -10/Materials | Discovered exit to Materials (range 5) 1520 | -10/Materials | Discovered new exit (range 12) 1550 | -10/Materials | Identified exit to Subcaves 2449 | -10/Materials | Entered Subcaves 2541 | -10/Subcaves | Lost 3 parts (1p1n1w) 2621 | -10/Subcaves | Disturbed a concealed Subdweller 2809 | -10/Subcaves | Discovered new exit (range 12) 2944 | -10/Subcaves | Visited Clippyterm 3131 | -10/Subcaves | Shifting Twisted Machinery released Mak. Light Armor Plating 3131 | -10/Subcaves | Shifting Twisted Machinery released Sub. Optics 3326 | -10/Subcaves | Learned Materials terminal intel 3538 | -10/Subcaves | Core integrity fell below 20% 3553 | -10/Subcaves | Destroyed by FI-S93(R) with Subdweller Machine Gun Last Messages --------------- Dropped Visual Processing Unit. Acquired Enh. Flamer. Dropped Sub. Power Source. Acquired Sub. Beam Cannon. Dropped Heat Sink. Acquired Riot Gun. Searching scrap... Found Mak. Spear. Found Piercing Trap. Found 14 Matter. Acquired 14 matter. Installed Piercing Trap. The unstable cave ceiling collapses. Grenade Launcher destroyed. XD-WNR(R) destroyed. FI-S93(R) suffers critical hit (Burn). FI-S93(R) affixes Scrap Shield Fragment to Scrap Shield. Dropped Enh. Flamer. Wheel destroyed. Map ----- +----------------------------------------------------+ | ?????????????????????????????????????????????????? | | ?????????????????????????????????????????????????? | | ?????????????????????????????????????????????????? | | ???????????????????####??????????????????????????? | | ???????###????????? "#??????????????????????????? | | ???????#/#?????????#" #??????????????????????????? | | ???????# ####???####" #??????????????????????????? | | ???????#"^ #####"! #??????????????????????????? | | ???????##" # *! "#??????????????????????????? | | #####???# "## #########???????????????????? | | ##??####" ##"""## #???????????????????? | | #???### "###### ?????????????????????? | | #?### " ### #???????????????????????? | | ## #?# #???????????????????????? | | ?## ### ##???????????????????????? | | ??## ## #??###???????????????????? | | ???# ## ## ##?## #???????????????????? | | ???## ## ##??# ###?????????????????? | | ???## ##??# ##????????????????? | | ?### ## #### #??###???????????? | | ## ### #??# ##??????????? | | # ### #### ##?????????? | | # ### ## #?????????? | | # ## ## ### #?????????? | | ###?## ## ### #### ##????????? | | ?????#######?# ### @ ## ##????#### | | ?????????????###?# ## #### ###### # | | ?????????????????## ! ##??# ## | | ?????????????????# ##!%##???#"" | | ?????????????????# # *R[#???##" | | ?????????????????##" ### ##????## | | ?????????????????# " ####" "?????## ## # | | ?????????????????# ""#??### ?????######## # | | ?????????????????# #?????# #???????????# | | ?????????????????# "??????" #???????????###### | | ?????????????????## ??????" "????????????????## | | ??????????????????# ??????? #?????????????????# | | ??????????????????# ??????? #?????????????????? | | ??????????????????####????????"#?????????????????? | | ?????????????????????????????????????????????????? | | ?????????????????????????????????????????????????? | | ?????????????????????????????????????????????????? | | ?????????????????????????????????????????????????? | | ?????????????????????????????????????????????????? | | ?????????????????????????????????????????????????? | | ?????????????????????????????????????????????????? | | ?????????????????????????????????????????????????? | | ?????????????????????????????????????????????????? | | ?????????????????????????????????????????????????? | | ?????????????????????????????????????????????????? | +----------------------------------------------------+ Best States ------------- Heat Dissipation 35 Energy Generation 15 Energy Capacity 250 Matter Stores 300 Matter Capacity 300 Sight Range 16 Terrain Scan Density 10 Evasion (%) 50 Recoil Reduction 2 Offensive Hacking 10 Item Schematics ----------------- None Robot Schematics ------------------ None Fabricated ------------ Nothing Alien Tech Used ----------------- None Achievements -------------- Shopping List Challenges ------------ None Game ------ Seed HardenedTripodGuard Manual? 0 Play Time 00:46:39 Cumulative 5.6 hours Start 2024.04.09 @ 05:39:41 End 2024.04.09 @ 06:30:53 Sessions 1 Manual Loads 0 Difficulty Rogue Special Mode None Game No. 5 Rogue 5 Adventurer 0 Explorer 0 Win Type - Total 0 Types 0/0/0/0/0/0/0/0/0 Lore% 2 Gallery% 9 Achievement% 8 Wizard Run 0 Options --------- Layout 1 ASCII 0 Keyboard 0 Movement Mouse Keybinds 0 Fullscreen 1 Font 24/Smallcaps Map View 50x35 Zoom Use 0% Tactical HUD 0 Map Filters NONE Filters NONE Steam 1 RUN: a21d8192-913e-4b21-838b-eef8e69a739e